[Event "European Womens-ch 2025"]
[Site "Rhodes"]
[Date "2025.04.07"]
[Round "7.22"]
[White "Sandu, Mihaela"]
[Black "Zhukova, Natalia"]
[Result "1/2-1/2"]
[Annotator "RC"]
[ECO "C84"]
[WhiteElo "2230"]
[BlackElo "2306"]
[PlyCount "138"]
[EventDate "2025.03.29"]
[EventType "swiss"]
[EventCountry "GRE"]
[SourceTitle "playchess.com"]
[Source "ChessBase"]
[SourceQuality "1"]
[TimeControl "40/5400+30:1800+30"]

1. e4 {[%emt 0:00:15]} e5 {[%emt 0:00:07]} 2. Nf3 {[%emt 0:00:08]} Nc6 {[%emt 0:00:06]} 3. Bb5 {[%emt 0:00:06]} a6 {[%emt 0:00:18]} 4. Ba4 {[%emt 0:00:05]} Nf6 {[%emt 0:00:17]} 5. O-O {[%emt 0:00:17]} b5 {[%emt 0:00:21]} 6. Bb3 {[%emt 0:00:06]} Bb7 {[%emt 0:00:10]} 7. d3 {[%emt 0:01:06]} Be7 {[%emt 0:00:30]} 8. c4 {[%emt 0:00:55]} O-O {[%emt 0:00:54]} 9. Nc3 {[%emt 0:00:35]} bxc4 {[%emt 0:01:48]} 10. Bxc4 {[%emt 0:00:36]} d6 {[%emt 0:02:37]} 11. a3 {[%emt 0:01:35]} Na5 {[%emt 0:00:54]} 12. Ba2 {[%emt 0:00:40]} c5 {[%emt 0:00:12]} 13. Bg5 {[%emt 0:09:56]} Nc6 {[%emt 0:08:16]} 14. Rb1 {[%emt 0:07:58]} a5 {[%emt 0:18:12]} 15. Bxf6 {[%emt 0:20:54]} Bxf6 {[%emt 0:00:23]} 16. Bd5 {[%emt 0:00:07]} Rb8 {[%emt 0:03:46]} 17. Nd2 {[%emt 0:07:44]} Nd4 {[%emt 0:04:42]} 18. Bxb7 {[%emt 0:04:08]} Rxb7 {[%emt 0:00:03]} 19. Nd5 {[%emt 0:01:36]} Bg5 {[%emt 0:01:50]} 20. Nf3 {[%emt 0:02:43]} Nxf3+ {[%emt 0:15:18]} 21. Qxf3 {[%emt 0:01:14]} Qb8 {[%emt 0:00:32]} 22. Qg4 {[%emt 0:06:44]} Bh6 {[%emt 0:01:54]} 23. h4 {[%emt 0:07:36]} Kh8 {[%emt 0:02:52]} 24. Qe2 {[%emt 0:06:02]} Rb3 {[%emt 0:00:42]} 25. Qc2 {[%emt 0:02:27]} Qb7 {[%emt 0:03:22]} 26. Qc4 {[%emt 0:07:37]} Rxb2 {[%emt 0:18:07]} 27. Rxb2 {[%emt 0:00:13]} Qxb2 {[%emt 0:00:02]} 28. Qa6 {[%emt 0:00:10]} Qb8 {[%emt 0:00:23]} 29. Qxa5 {[%emt 0:00:25]} f5 {[%emt 0:00:53]} 30. Qb6 {[%emt 0:04:04]} fxe4 {[%emt 0:01:50]} 31. dxe4 {[%emt 0:00:05]} g6 {[%emt 0:09:46]} 32. a4 {[%emt 0:03:38]} Bd2 {[%emt 0:01:25]} 33. Rd1 {[%emt 0:00:50]} Qxb6 {[%emt 0:03:27]} 34. Nxb6 {[%emt 0:00:04]} Bc3 {[%emt 0:00:05]} 35. Nc4 {[%emt 0:03:42]} Bd4 {[%emt 0:00:51]} 36. Rd2 {[%emt 0:00:15]} Rb8 {[%emt 0:00:05]} 37. Rc2 {[%emt 0:00:58]} Rb1+ {[%emt 0:00:22]} 38. Kh2 {[%emt 0:00:05]} Ra1 {[%emt 0:00:06]} 39. a5 {[%emt 0:00:14]} Kg7 {[%emt 0:00:18]} 40. g3 {[%emt 0:00:00]} Kf6 {[%emt 0:00:00]} 41. Nxd6 {[%emt 0:02:56]} Rxa5 {[%emt 0:03:50]} 42. Nc4 {[%emt 0:00:23]} Ra6 {[%emt 0:05:31]} 43. Kg2 {[%emt 0:03:11]} Ke6 {[%emt 0:00:30]} 44. f4 {[%emt 0:01:17]} exf4 {[%emt 0:01:15]} 45. gxf4 {[%emt 0:00:17]} Ra1 {[%emt 0:00:57]} 46. Nd2 {[%emt 0:08:31]} Re1 {[%emt 0:03:19]} 47. Ra2 {[%emt 0:01:32]} Re2+ {[%emt 0:01:55]} 48. Kf3 {[%emt 0:06:45]} Re3+ {[%emt 0:00:22]} 49. Kg2 {[%emt 0:00:05]} Kd7 {[%emt 0:01:14]} 50. Ra7+ {[%emt 0:06:11]} Kc6 {[%emt 0:00:10]} 51. Nc4 {[%emt 0:00:11]} Rxe4 {[%emt 0:00:52]} 52. Kf3 {[%emt 0:00:08]} Re1 {[%emt 0:01:48]} 53. Rxh7 {[%emt 0:00:04]} Rc1 {[%emt 0:03:41]} 54. Ne5+ {[%emt 0:02:19]} Bxe5 {[%emt 0:00:31]} 55. fxe5 {[%emt 0:00:09]} Kd5 {[%emt 0:00:14]} 56. Kf4 {[%emt 0:04:26]} Rf1+ {[%emt 0:03:58]} 57. Kg5 {[%emt 0:00:03]} Kxe5 {[%emt 0:00:37]} 58. Kxg6 {[%emt 0:00:05]} Rg1+ {[%emt 0:00:29]} 59. Kh6 {[%emt 0:02:21]} c4 {[%emt 0:01:18]} 60. Rc7 {[%emt 0:00:06]} Kd4 {[%emt 0:01:00]} 61. h5 {[%emt 0:00:15]} c3 {[%emt 0:00:10]} 62. Kh7 {[%emt 0:00:31]} Kd3 {[%emt 0:01:30]} 63. h6 {[%emt 0:00:21]} c2 {[%emt 0:00:07]} 64. Kh8 {[%emt 0:00:30]} c1=Q {[%emt 0:00:08]} 65. Rxc1 {[%emt 0:00:10]} Rxc1 {[%emt 0:00:03]} 66. h7 {[%emt 0:00:07]} Rc8+ {[%emt 0:00:06]} 67. Kg7 {[%emt 0:00:05]} Rc7+ {[%emt 0:00:02]} 68. Kg8 {[%emt 0:00:06]} Rxh7 {[%emt 0:00:03]} 69. Kxh7 {[%emt 0:00:05]} Kd4 {[%emt 0:11:34]} 1/2-1/2

[Event "European Womens-ch 2025"]
[Site "Rhodes"]
[Date "2025.04.07"]
[Round "7.23"]
[White "Rudzinska, Michalina"]
[Black "Unuk, Laura"]
[Result "0-1"]
[Annotator "RC"]
[ECO "C45"]
[WhiteElo "2223"]
[BlackElo "2301"]
[PlyCount "52"]
[EventDate "2025.03.29"]
[EventType "swiss"]
[EventCountry "GRE"]
[SourceTitle "playchess.com"]
[Source "ChessBase"]
[SourceQuality "1"]
[TimeControl "40/5400+30:1800+30"]

1. e4 {[%emt 0:00:05]} e5 {[%emt 0:00:07]} 2. Nf3 {[%emt 0:00:08]} Nc6 {[%emt 0:00:08]} 3. d4 {[%emt 0:00:16]} exd4 {[%emt 0:00:36]} 4. Nxd4 {[%emt 0:00:09]} Nf6 {[%emt 0:00:22]} 5. Nxc6 {[%emt 0:00:20]} bxc6 {[%emt 0:00:07]} 6. Bd3 {[%emt 0:00:34]} d5 {[%emt 0:00:38]} 7. exd5 {[%emt 0:00:13]} cxd5 {[%emt 0:00:14]} 8. O-O {[%emt 0:00:13]} Be7 {[%emt 0:02:00]} 9. h3 {[%emt 0:00:36]} O-O {[%emt 0:00:57]} 10. Re1 {[%emt 0:00:26]} Bb7 {[%emt 0:14:50]} 11. b3 {[%emt 0:02:14]} Ne4 {[%emt 0:12:08]} 12. Bb2 {[%emt 0:08:26]} Bf6 {[%emt 0:12:44]} 13. c3 {[%emt 0:02:41]} Re8 {[%emt 0:01:51]} 14. Qc2 {[%emt 0:06:34]} Qd6 {[%emt 0:12:25]} 15. Bxe4 {[%emt 0:11:34]} dxe4 {[%emt 0:02:22]} 16. Na3 {[%emt 0:10:33]} e3 {[%emt 0:11:11]} 17. fxe3 {[%emt 0:03:10]} Bh4 {[%emt 0:02:37]} 18. Re2 {[%emt 0:03:30]} Be4 {[%emt 0:00:46]} 19. Qd1 {[%emt 0:03:07]} Qg3 {[%emt 0:03:30]} 20. Qd7 {[%emt 0:07:40]} Bf3 {[%emt 0:03:04]} 21. Rc2 {[%emt 0:00:14]} Rad8 {[%emt 0:02:01]} 22. Qf5 {[%emt 0:06:28]} Be4 {[%emt 0:01:26]} 23. Qg4 {[%emt 0:00:34]} Bxc2 {[%emt 0:01:34]} 24. Qxg3 {[%emt 0:00:09]} Bxg3 {[%emt 0:00:06]} 25. Nxc2 {[%emt 0:00:04]} Rd2 {[%emt 0:00:14]} 26. Rc1 {[%emt 0:00:05]} Red8 {[%emt 0:00:13]} 0-1

[Event "European Womens-ch 2025"]
[Site "Rhodes"]
[Date "2025.04.07"]
[Round "7.24"]
[White "Heinemann, Josefine"]
[Black "Terbe, Zsuzsanna"]
[Result "1/2-1/2"]
[Annotator "RC"]
[ECO "D11"]
[WhiteElo "2297"]
[BlackElo "2179"]
[PlyCount "77"]
[EventDate "2025.03.29"]
[EventType "swiss"]
[EventCountry "GRE"]
[SourceTitle "playchess.com"]
[Source "ChessBase"]
[SourceQuality "1"]
[TimeControl "40/5400+30:1800+30"]

1. c4 {[%emt 0:00:05]} c6 {[%emt 0:00:11]} 2. d4 {[%emt 0:00:09]} d5 {[%emt 0:00:07]} 3. Nf3 {[%emt 0:00:06]} Nf6 {[%emt 0:00:06]} 4. g3 {[%emt 0:00:04]} Bf5 {[%emt 0:00:47]} 5. Nc3 {[%emt 0:02:05]} e6 {[%emt 0:00:57]} 6. Qb3 {[%emt 0:00:08]} Qb6 {[%emt 0:02:08]} 7. c5 {[%emt 0:00:20]} Qxb3 {[%emt 0:01:25]} 8. axb3 {[%emt 0:00:05]} Be7 {[%emt 0:03:16]} 9. b4 {[%emt 0:00:16]} O-O {[%emt 0:00:24]} 10. Nh4 {[%emt 0:00:22]} Bc2 {[%emt 0:08:10]} 11. Kd2 {[%emt 0:00:16]} Bb3 {[%emt 0:02:12]} 12. e3 {[%emt 0:00:26]} Ne4+ {[%emt 0:03:15]} 13. Ke1 {[%emt 0:00:21]} g5 {[%emt 0:04:57]} 14. Nf3 {[%emt 0:04:29]} Bc2 {[%emt 0:13:08]} 15. Ne5 {[%emt 0:06:29]} f6 {[%emt 0:09:44]} 16. Nd3 {[%emt 0:01:38]} a6 {[%emt 0:12:09]} 17. f3 {[%emt 0:07:55]} Nxc3 {[%emt 0:00:19]} 18. bxc3 {[%emt 0:00:04]} Nd7 {[%emt 0:01:25]} 19. Kd2 {[%emt 0:02:13]} Bxd3 {[%emt 0:00:08]} 20. Bxd3 {[%emt 0:01:00]} f5 {[%emt 0:01:02]} 21. Ke2 {[%emt 0:07:27]} Nf6 {[%emt 0:01:48]} 22. Bd2 {[%emt 0:04:50]} g4 {[%emt 0:01:45]} 23. fxg4 {[%emt 0:00:27]} Nxg4 {[%emt 0:02:31]} 24. h3 {[%emt 0:07:11]} Nf6 {[%emt 0:00:13]} 25. g4 {[%emt 0:02:06]} Ne4 {[%emt 0:08:25]} 26. Rhg1 {[%emt 0:05:32]} Kh8 {[%emt 0:03:47]} 27. Raf1 {[%emt 0:12:58]} Bh4 {[%emt 0:03:20]} 28. Bxe4 {[%emt 0:06:15]} fxe4 {[%emt 0:00:19]} 29. Rxf8+ {[%emt 0:00:21]} Rxf8 {[%emt 0:00:07]} 30. Rf1 {[%emt 0:00:04]} Rxf1 {[%emt 0:03:09]} 31. Kxf1 {[%emt 0:01:27]} Bg3 {[%emt 0:04:30]} 32. Be1 {[%emt 0:00:59]} Bc7 {[%emt 0:00:07]} 33. h4 {[%emt 0:03:44]} h5 {[%emt 0:05:16]} 34. Kg2 {[%emt 0:04:25]} Kh7 {[%emt 0:00:19]} 35. Kh3 {[%emt 0:04:17]} Kg6 {[%emt 0:00:11]} 36. Bg3 {[%emt 0:02:09]} Bd8 {[%emt 0:00:09]} 37. Be1 {[%emt 0:01:03]} Bc7 {[%emt 0:00:32]} 38. Bg3 {[%emt 0:00:11]} Bd8 {[%emt 0:00:06]} 39. Be1 {[%emt 0:00:07]} 1/2-1/2

[Event "European Womens-ch 2025"]
[Site "Rhodes"]
[Date "2025.04.07"]
[Round "7.25"]
[White "Prado Acebo, Ines"]
[Black "Radeva, Viktoria"]
[Result "0-1"]
[Annotator "RC"]
[ECO "D38"]
[WhiteElo "2199"]
[BlackElo "2297"]
[PlyCount "52"]
[EventDate "2025.03.29"]
[EventType "swiss"]
[EventCountry "GRE"]
[SourceTitle "playchess.com"]
[Source "ChessBase"]
[SourceQuality "1"]
[TimeControl "40/5400+30:1800+30"]

1. d4 {[%emt 0:00:04]} d5 {[%emt 0:00:07]} 2. c4 {[%emt 0:00:09]} e6 {[%emt 0:00:04]} 3. Nc3 {[%emt 0:00:12]} Nf6 {[%emt 0:00:07]} 4. Nf3 {[%emt 0:00:11]} Bb4 {[%emt 0:00:12]} 5. cxd5 {[%emt 0:00:39]} exd5 {[%emt 0:00:06]} 6. Bg5 {[%emt 0:00:14]} h6 {[%emt 0:00:40]} 7. Bh4 {[%emt 0:00:31]} g5 {[%emt 0:01:26]} 8. Bg3 {[%emt 0:00:08]} Ne4 {[%emt 0:00:07]} 9. Nd2 {[%emt 0:00:45]} Nxg3 {[%emt 0:00:09]} 10. hxg3 {[%emt 0:00:20]} c6 {[%emt 0:00:04]} 11. a3 {[%emt 0:05:21]} Bxc3 {[%emt 0:01:01]} 12. bxc3 {[%emt 0:00:10]} Bf5 {[%emt 0:00:55]} 13. c4 {[%emt 0:11:12]} Qa5 {[%emt 0:40:26]} 14. cxd5 {[%emt 0:13:52]} cxd5 {[%emt 0:01:11]} 15. Qb3 {[%emt 0:01:57]} Nd7 {[%emt 0:02:36]} 16. Rc1 {[%emt 0:07:39]} O-O {[%emt 0:05:37]} 17. Rxh6 {[%emt 0:20:57]} Rfc8 {[%emt 0:08:47]} 18. Ra1 {[%emt 0:07:42]} Rc3 {[%emt 0:09:12]} 19. Qb4 {[%emt 0:00:45]} Qc7 {[%emt 0:11:56]} 20. e3 {[%emt 0:08:50]} Rc1+ {[%emt 0:08:04]} 21. Rxc1 {[%emt 0:00:07]} Qxc1+ {[%emt 0:00:01]} 22. Ke2 {[%emt 0:00:09]} Bc2 {[%emt 0:01:26]} 23. e4 {[%emt 0:12:49]} Kg7 {[%emt 0:01:54]} 24. Qxb7 {[%emt 0:01:56]} Bd1+ {[%emt 0:03:05]} 25. Ke3 {[%emt 0:00:19]} Qc3+ {[%emt 0:00:05]} 26. Bd3 {[%emt 0:00:11]} Bc2 {[%emt 0:00:13]} 0-1

[Event "European Womens-ch 2025"]
[Site "Rhodes"]
[Date "2025.04.07"]
[Round "7.26"]
[White "Doluhanova, Evgeniya"]
[Black "Calzetta Ruiz, Monica"]
[Result "1-0"]
[Annotator "RC"]
[ECO "D06"]
[WhiteElo "2287"]
[BlackElo "2230"]
[PlyCount "78"]
[EventDate "2025.03.29"]
[EventType "swiss"]
[EventCountry "GRE"]
[SourceTitle "playchess.com"]
[Source "ChessBase"]
[SourceQuality "1"]
[TimeControl "40/5400+30:1800+30"]

1. d4 {[%emt 0:03:49]} d5 {[%emt 0:00:14]} 2. Nf3 {[%emt 0:00:28]} c5 {[%emt 0:01:32]} 3. c4 {[%emt 0:02:08]} Nf6 {[%emt 0:01:03]} 4. cxd5 {[%emt 0:03:43]} cxd4 {[%emt 0:01:05]} 5. Nxd4 {[%emt 0:00:19]} Nxd5 {[%emt 0:02:50]} 6. e4 {[%emt 0:09:01]} Nf6 {[%emt 0:00:35]} 7. Bb5+ {[%emt 0:03:26]} Bd7 {[%emt 0:02:11]} 8. Bxd7+ {[%emt 0:00:52]} Nbxd7 {[%emt 0:02:40]} 9. Nc3 {[%emt 0:01:21]} g6 {[%emt 0:22:02]} 10. O-O {[%emt 0:20:11]} Bg7 {[%emt 0:00:30]} 11. Re1 {[%emt 0:00:30]} e5 {[%emt 0:05:25]} 12. Nb3 {[%emt 0:11:22]} O-O {[%emt 0:00:41]} 13. Be3 {[%emt 0:01:16]} Qe7 {[%emt 0:17:54]} 14. Qe2 {[%emt 0:05:03]} Rfc8 {[%emt 0:04:45]} 15. Red1 {[%emt 0:01:20]} Qb4 {[%emt 0:08:24]} 16. f3 {[%emt 0:02:47]} Bf8 {[%emt 0:03:48]} 17. Kf1 {[%emt 0:19:21]} Nb6 {[%emt 0:06:05]} 18. Bg5 {[%emt 0:02:00]} Be7 {[%emt 0:01:26]} 19. Nc1 {[%emt 0:01:13]} Kg7 {[%emt 0:09:10]} 20. Nd3 {[%emt 0:00:37]} Qa5 {[%emt 0:00:25]} 21. Rac1 {[%emt 0:04:18]} h6 {[%emt 0:03:54]} 22. Bh4 {[%emt 0:00:27]} Rc6 {[%emt 0:01:14]} 23. Be1 {[%emt 0:00:30]} Nbd7 {[%emt 0:02:01]} 24. Nd5 {[%emt 0:00:41]} Qd8 {[%emt 0:00:01]} 25. Rxc6 {[%emt 0:00:35]} bxc6 {[%emt 0:00:02]} 26. Nxf6 {[%emt 0:01:14]} Kxf6 {[%emt 0:02:43]} 27. Nxe5 {[%emt 0:01:35]} Nxe5 {[%emt 0:00:05]} 28. Rxd8 {[%emt 0:00:06]} Rxd8 {[%emt 0:00:06]} 29. Bc3 {[%emt 0:00:43]} Ke6 {[%emt 0:00:05]} 30. Bxe5 {[%emt 0:00:28]} Kxe5 {[%emt 0:00:03]} 31. Qc4 {[%emt 0:00:18]} Rd1+ {[%emt 0:02:28]} 32. Ke2 {[%emt 0:00:08]} Rb1 {[%emt 0:00:03]} 33. Qc3+ {[%emt 0:00:40]} Ke6 {[%emt 0:00:04]} 34. Qxc6+ {[%emt 0:00:16]} Bd6 {[%emt 0:00:04]} 35. e5 {[%emt 0:02:12]} Rxb2+ {[%emt 0:00:03]} 36. Kd3 {[%emt 0:00:34]} Rb6 {[%emt 0:00:02]} 37. Qe8+ {[%emt 0:01:12]} Be7 {[%emt 0:00:12]} 38. f4 {[%emt 0:00:10]} Rb4 {[%emt 0:01:29]} 39. Qc8+ {[%emt 0:00:13]} Kd5 {[%emt 0:02:36]} 1-0

[Event "European Womens-ch 2025"]
[Site "Rhodes"]
[Date "2025.04.07"]
[Round "7.27"]
[White "Rodshtein, Tereza"]
[Black "Mkrtchyan, Mariam"]
[Result "1-0"]
[Annotator "RC"]
[ECO "C47"]
[WhiteElo "2171"]
[BlackElo "2282"]
[PlyCount "53"]
[EventDate "2025.03.29"]
[EventType "swiss"]
[EventCountry "GRE"]
[SourceTitle "playchess.com"]
[Source "ChessBase"]
[SourceQuality "1"]
[TimeControl "40/5400+30:1800+30"]

1. e4 {[%emt 0:00:03]} e5 {[%emt 0:00:04]} 2. Nf3 {[%emt 0:00:08]} Nc6 {[%emt 0:00:04]} 3. d4 {[%emt 0:00:13]} exd4 {[%emt 0:00:12]} 4. Nxd4 {[%emt 0:00:13]} Nf6 {[%emt 0:00:23]} 5. Nc3 {[%emt 0:00:18]} Bc5 {[%emt 0:02:23]} 6. Nxc6 {[%emt 0:04:14]} bxc6 {[%emt 0:00:36]} 7. Bd3 {[%emt 0:03:46]} d6 {[%emt 0:07:02]} 8. Bg5 {[%emt 0:06:17]} h6 {[%emt 0:00:53]} 9. Bh4 {[%emt 0:01:25]} a5 {[%emt 0:05:39]} 10. h3 {[%emt 0:06:54]} O-O {[%emt 0:08:02]} 11. O-O {[%emt 0:03:24]} Re8 {[%emt 0:02:20]} 12. Kh1 {[%emt 0:09:06]} g5 {[%emt 0:08:21]} 13. Bg3 {[%emt 0:00:11]} Bd4 {[%emt 0:00:02]} 14. f4 {[%emt 0:07:03]} g4 {[%emt 0:05:29]} 15. Bh4 {[%emt 0:04:17]} gxh3 {[%emt 0:02:44]} 16. Qf3 {[%emt 0:02:32]} Bg4 {[%emt 0:15:41]} 17. Qg3 {[%emt 0:00:22]} hxg2+ {[%emt 0:00:03]} 18. Qxg2 {[%emt 0:00:43]} Qd7 {[%emt 0:03:03]} 19. Ne2 {[%emt 0:02:08]} Bxb2 {[%emt 0:01:02]} 20. Rab1 {[%emt 0:00:11]} Kf8 {[%emt 0:00:13]} 21. Rg1 {[%emt 0:08:38]} Nxe4 {[%emt 0:28:52]} 22. Bxe4 {[%emt 0:10:48]} Rxe4 {[%emt 0:00:42]} 23. Qxe4 {[%emt 0:11:00]} Re8 {[%emt 0:00:06]} 24. Qd3 {[%emt 0:01:09]} c5 {[%emt 0:04:29]} 25. Rxb2 {[%emt 0:01:22]} Qc6+ {[%emt 0:00:10]} 26. Kh2 {[%emt 0:04:30]} Rxe2+ {[%emt 0:00:05]} 27. Qxe2 {[%emt 0:00:46]} 1-0

[Event "European Womens-ch 2025"]
[Site "Rhodes"]
[Date "2025.04.07"]
[Round "7.28"]
[White "Tirpan, Ceren"]
[Black "Avramidou, Anastasia"]
[Result "0-1"]
[Annotator "RC"]
[ECO "A36"]
[WhiteElo "1996"]
[BlackElo "2275"]
[PlyCount "82"]
[EventDate "2025.03.29"]
[EventType "swiss"]
[EventCountry "GRE"]
[SourceTitle "playchess.com"]
[Source "ChessBase"]
[SourceQuality "1"]
[TimeControl "40/5400+30:1800+30"]

1. c4 {[%emt 0:00:03]} Nf6 {[%emt 0:00:08]} 2. Nc3 {[%emt 0:00:05]} g6 {[%emt 0:00:08]} 3. g3 {[%emt 0:00:04]} Bg7 {[%emt 0:00:05]} 4. Bg2 {[%emt 0:00:04]} d6 {[%emt 0:00:08]} 5. e4 {[%emt 0:01:07]} O-O {[%emt 0:00:32]} 6. Nge2 {[%emt 0:00:11]} c5 {[%emt 0:05:06]} 7. O-O {[%emt 0:03:37]} Nc6 {[%emt 0:01:57]} 8. d3 {[%emt 0:05:10]} Rb8 {[%emt 0:11:36]} 9. Rb1 {[%emt 0:05:48]} b6 {[%emt 0:08:20]} 10. h3 {[%emt 0:05:32]} Ne8 {[%emt 0:14:09]} 11. Be3 {[%emt 0:13:19]} Nc7 {[%emt 0:02:32]} 12. d4 {[%emt 0:10:17]} Ba6 {[%emt 0:10:31]} 13. d5 {[%emt 0:10:48]} Ne5 {[%emt 0:04:28]} 14. b3 {[%emt 0:00:07]} b5 {[%emt 0:00:05]} 15. f4 {[%emt 0:04:50]} Nd7 {[%emt 0:00:06]} 16. cxb5 {[%emt 0:02:12]} Nxb5 {[%emt 0:00:07]} 17. Nxb5 {[%emt 0:00:06]} Bxb5 {[%emt 0:00:06]} 18. Qd2 {[%emt 0:00:04]} Qb6 {[%emt 0:12:55]} 19. Rfd1 {[%emt 0:05:08]} Rfc8 {[%emt 0:02:24]} 20. Nc3 {[%emt 0:08:02]} Ba6 {[%emt 0:00:18]} 21. b4 {[%emt 0:03:28]} cxb4 {[%emt 0:09:54]} 22. Bxb6 {[%emt 0:05:00]} bxc3 {[%emt 0:00:04]} 23. Qc2 {[%emt 0:00:05]} Nxb6 {[%emt 0:01:01]} 24. e5 {[%emt 0:01:37]} dxe5 {[%emt 0:01:30]} 25. d6 {[%emt 0:01:47]} exd6 {[%emt 0:00:25]} 26. Rxd6 {[%emt 0:00:23]} exf4 {[%emt 0:02:07]} 27. gxf4 {[%emt 0:01:27]} Re8 {[%emt 0:04:44]} 28. Be4 {[%emt 0:01:49]} Bc8 {[%emt 0:02:50]} 29. a4 {[%emt 0:04:40]} Bxh3 {[%emt 0:02:13]} 30. Rb5 {[%emt 0:02:15]} Rbc8 {[%emt 0:01:36]} 31. Bd3 {[%emt 0:03:36]} Nc4 {[%emt 0:01:25]} 32. Bxc4 {[%emt 0:00:37]} Rxc4 {[%emt 0:00:05]} 33. Rbd5 {[%emt 0:00:53]} Rcc8 {[%emt 0:00:57]} 34. f5 {[%emt 0:01:23]} Bxf5 {[%emt 0:00:27]} 35. Rxf5 {[%emt 0:00:07]} gxf5 {[%emt 0:00:01]} 36. Rd7 {[%emt 0:00:13]} Re6 {[%emt 0:02:19]} 37. Qxf5 {[%emt 0:01:37]} Rg6+ {[%emt 0:00:05]} 38. Kh2 {[%emt 0:00:30]} c2 {[%emt 0:01:20]} 39. Qxf7+ {[%emt 0:01:12]} Kh8 {[%emt 0:00:04]} 40. Qe7 {[%emt 0:00:00]} Rh6+ {[%emt 0:00:00]} 41. Kg2 {[%emt 0:04:01]} Bf6 {[%emt 0:05:22]} 0-1

[Event "European Womens-ch 2025"]
[Site "Rhodes"]
[Date "2025.04.07"]
[Round "7.29"]
[White "Fataliyeva, Ulviyya"]
[Black "Pavlidou, Ekaterini"]
[Result "1/2-1/2"]
[Annotator "RC"]
[ECO "A35"]
[WhiteElo "2387"]
[BlackElo "2160"]
[PlyCount "87"]
[EventDate "2025.03.29"]
[EventType "swiss"]
[EventCountry "GRE"]
[SourceTitle "playchess.com"]
[Source "ChessBase"]
[SourceQuality "1"]
[TimeControl "40/5400+30:1800+30"]

1. Nf3 {[%emt 0:00:52]} c5 {[%emt 0:00:46]} 2. c4 {[%emt 0:00:06]} Nc6 {[%emt 0:01:02]} 3. Nc3 {[%emt 0:00:05]} g6 {[%emt 0:02:09]} 4. e3 {[%emt 0:00:29]} Bg7 {[%emt 0:01:03]} 5. d4 {[%emt 0:00:27]} d6 {[%emt 0:02:05]} 6. Be2 {[%emt 0:01:21]} Bg4 {[%emt 0:08:48]} 7. O-O {[%emt 1:30:40]} Nh6 {[%emt 0:15:04]} 8. Qb3 {[%emt 0:00:00]} Qc8 {[%emt 0:15:33]} 9. dxc5 {[%emt 0:00:00]} dxc5 {[%emt 0:01:03]} 10. h3 {[%emt 0:00:00]} Bd7 {[%emt 0:04:50]} 11. e4 {[%emt 0:00:00]} f6 {[%emt 0:01:35]} 12. e5 {[%emt 0:00:00]} fxe5 {[%emt 0:03:14]} 13. Ne4 {[%emt 0:00:00]} Nf5 {[%emt 0:04:36]} 14. Be3 {[%emt 0:00:00]} b6 {[%emt 0:01:36]} 15. Qd1 {[%emt 0:00:00]} O-O {[%emt 0:02:55]} 16. Bd3 {[%emt 0:00:00]} h6 {[%emt 0:06:47]} 17. Nc3 {[%emt 0:00:00]} e6 {[%emt 0:06:15]} 18. Nd2 {[%emt 0:00:00]} Ncd4 {[%emt 0:01:54]} 19. Rb1 {[%emt 0:00:00]} Bc6 {[%emt 0:00:30]} 20. Be4 {[%emt 0:00:00]} Bxe4 {[%emt 0:03:22]} 21. Ncxe4 {[%emt 0:00:00]} Qc6 {[%emt 0:00:53]} 22. Qg4 {[%emt 0:00:00]} Kh7 {[%emt 0:01:04]} 23. h4 {[%emt 0:00:00]} Rad8 {[%emt 0:02:42]} 24. Kh2 {[%emt 0:00:00]} Nc2 {[%emt 0:01:57]} 25. h5 {[%emt 0:00:00]} Qe8 {[%emt 0:03:29]} 26. hxg6+ {[%emt 0:00:00]} Qxg6 {[%emt 0:00:02]} 27. Qe2 {[%emt 0:00:00]} Ncd4 {[%emt 0:00:32]} 28. Qd1 {[%emt 0:00:00]} Nh4 {[%emt 0:01:44]} 29. Ng3 {[%emt 0:00:00]} Nc2 {[%emt 0:03:23]} 30. Qe2 {[%emt 0:00:00]} Qd3 {[%emt 0:01:13]} 31. Nde4 {[%emt 0:00:00]} Qxe2 {[%emt 0:02:33]} 32. Nxe2 {[%emt 0:00:00]} Nf5 {[%emt 0:00:05]} 33. Bc1 {[%emt 0:00:00]} Rd7 {[%emt 0:00:20]} 34. b3 {[%emt 0:00:00]} Rfd8 {[%emt 0:01:47]} 35. N2c3 {[%emt 0:00:00]} Nb4 {[%emt 0:00:25]} 36. a3 {[%emt 0:00:00]} Nc6 {[%emt 0:00:08]} 37. g4 {[%emt 0:00:00]} Nfe7 {[%emt 0:00:44]} 38. Kg3 {[%emt 0:00:00]} Rd3+ {[%emt 0:00:32]} 39. Be3 {[%emt 0:00:00]} Kg6 {[%emt 0:00:34]} 40. Rh1 {[%emt 0:00:00]} Nf5+ {[%emt 0:00:00]} 41. gxf5+ {[%emt 0:00:03]} exf5 {[%emt 0:00:51]} 42. Kh2 {[%emt 0:13:02]} fxe4 {[%emt 0:01:40]} 43. Nxe4 {[%emt 0:00:11]} Ne7 {[%emt 0:00:41]} 44. Rhg1+ {[%emt 0:35:14]} 1/2-1/2